fUST/lending_fUST_20250404
["ID","MTS","AMOUNT","RATE_DAILY","PERIOD"]
[357124931,1743768633544,-500.0,0.00013698,2]
[357124932,1743768633554,-500.0,0.00013698,2]
[357124933,1743768633564,-500.0,0.00013698,2]
[357124934,1743768633574,-500.0,0.00013698,2]
[357124935,1743768633584,-500.0,0.00013698,2]
[357124936,1743768633594,-500.0,0.00013698,2]
[357124937,1743768633604,-500.0,0.00013698,2]
[357124938,1743768633614,-500.0,0.00013698,2]
[357124939,1743768633624,-500.0,0.00013698,2]
[357124940,1743768633633,-500.0,0.00013698,2]
[357124941,1743768633643,-500.0,0.00013698,2]
[357124942,1743768633652,-500.0,0.00013698,2]
[357124943,1743768633662,-500.0,0.00013698,2]
[357124944,1743768633673,-500.0,0.00013698,2]
[357124945,1743768633682,-191.42554219,0.00013698,2]
[357124946,1743768633692,-500.0,0.00013698,2]
[357124947,1743768633702,-500.0,0.00013698,2]
[357124948,1743768633712,-500.0,0.00013698,2]
[357124949,1743768633722,-500.0,0.00013698,2]
[357124950,1743768633731,-500.0,0.00013698,2]
[357124951,1743768633741,-500.0,0.00013698,2]
[357124952,1743768633750,-500.0,0.00013698,2]
[357124953,1743768633760,-500.0,0.00013698,2]
[357124954,1743768633770,-500.0,0.00013698,2]
[357124955,1743768633780,-1829.19,0.00013698,2]
[357124956,1743768633790,-500.0,0.00013698,2]
[357124957,1743768633813,-500.0,0.00013698,2]
[357124958,1743768633823,-500.0,0.00013698,2]
[357124959,1743768633833,-500.0,0.00013698,2]
[357124960,1743768633843,-500.0,0.00013698,2]
[357124961,1743768633854,-510.89695449,0.00013698,2]
[357124962,1743768633863,-500.0,0.00013698,2]
[357124963,1743768633873,-505.39025471,0.00013698,2]
[357124964,1743768633883,-500.0,0.00013698,2]
[357124965,1743768633893,-500.0,0.00013698,2]
[357124966,1743768633904,-500.0,0.00013698,2]
[357124967,1743768633916,-500.0,0.00013698,2]
[357124968,1743768633926,-500.0,0.00013698,2]
[357124969,1743768633937,-500.0,0.00013698,2]
[357124970,1743768633947,-500.0,0.00013698,2]
[357124971,1743768633958,-717.52,0.00013698,2]
[357124972,1743768633968,-500.0,0.00013698,2]
[357124973,1743768633979,-500.0,0.00013698,2]
[357124974,1743768633990,-500.0,0.00013698,2]
[357124975,1743768634000,-571.35569115,0.00013698,2]
[357124976,1743768634010,-500.0,0.00013698,2]
[357124977,1743768634020,-500.0,0.00013698,2]
[357124978,1743768634030,-500.0,0.00013698,2]
[357124979,1743768634040,-530.16,0.00013698,2]
[357124980,1743768634051,-500.0,0.00013698,2]
[357124981,1743768634060,-500.0,0.00013698,2]
[357124982,1743768634070,-500.0,0.00013698,2]
[357124983,1743768634081,-500.0,0.00013698,2]
[357124984,1743768634091,-1680.96,0.00013698,2]
[357124985,1743768634102,-500.0,0.00013698,2]
[357124986,1743768634112,-541.23,0.00013698,2]
[357124987,1743768634122,-500.0,0.00013698,2]
[357124988,1743768634133,-500.0,0.00013698,2]
[357124989,1743768634143,-500.0,0.00013698,2]
[357124990,1743768634154,-500.0,0.00013698,2]
[357124991,1743768634166,-500.0,0.00013698,2]
[357124992,1743768634177,-500.0,0.00013698,2]
[357124993,1743768634192,-500.0,0.00013698,2]
[357124994,1743768634202,-1015.6,0.00013698,2]
[357124995,1743768634214,-500.0,0.00013698,2]
[357124996,1743768634224,-500.0,0.00013698,2]
[357124997,1743768634235,-500.0,0.00013698,2]
[357124998,1743768634245,-500.0,0.00013698,2]
[357124999,1743768634255,-500.0,0.00013698,2]
[357125000,1743768634265,-500.0,0.00013698,2]
[357125001,1743768634275,-500.0,0.00013698,2]
[357125002,1743768634285,-500.0,0.00013698,2]
[357125003,1743768634296,-500.0,0.00013698,2]
[357125004,1743768634306,-500.0,0.00013698,2]
[357125005,1743768634316,-500.0,0.00013698,2]
[357125006,1743768634327,-500.0,0.00013698,2]
[357125007,1743768634337,-500.0,0.00013698,2]
[357125008,1743768634347,-500.0,0.00013698,2]
[357125009,1743768634357,-500.0,0.00013698,2]
[357125010,1743768634367,-500.0,0.00013698,2]
[357125011,1743768634377,-500.0,0.00013698,2]
[357125012,1743768634536,-500.0,0.00013698,2]
[357125013,1743768634546,-500.0,0.00013698,2]
[357125014,1743768634556,-500.0,0.00013698,2]
[357125015,1743768634565,-2208.11,0.00013698,2]
[357125016,1743768634575,-500.0,0.00013698,2]
[357125017,1743768634584,-500.0,0.00013698,2]
[357125018,1743768634594,-500.0,0.00013698,2]
[357125019,1743768634603,-493.69620336,0.00013698,2]
[357125020,1743768634613,-500.0,0.00013698,2]
[357125021,1743768634623,-500.0,0.00013698,2]
[357125022,1743768634633,-500.0,0.00013698,2]
[357125023,1743768634643,-500.0,0.00013698,2]
[357125024,1743768634652,-500.0,0.00013698,2]
[357125025,1743768634662,-500.0,0.00013698,2]
[357125026,1743768634672,-500.0,0.00013698,2]
[357125027,1743768634681,-500.0,0.00013698,2]
[357125028,1743768634691,-500.0,0.00013698,2]
[357125029,1743768634700,-500.0,0.00013698,2]
[357125030,1743768634710,-500.0,0.00013698,2]
[357125031,1743768634719,-500.0,0.00013698,2]
[357125032,1743768634729,-500.0,0.00013698,2]
[357125033,1743768634739,-500.0,0.00013698,2]
[357125034,1743768634748,-532.69930136,0.00013698,2]
[357125035,1743768634757,-500.0,0.00013698,2]
[357125036,1743768634767,-500.0,0.00013698,2]
[357125037,1743768634776,-500.0,0.00013698,2]
[357125038,1743768634785,-500.0,0.00013698,2]
[357125039,1743768634796,-500.0,0.00013698,2]
[357125040,1743768634809,-500.0,0.00013698,2]
[357125041,1743768634818,-500.0,0.00013698,2]
[357125042,1743768634827,-500.0,0.00013698,2]
[357125043,1743768634837,-500.0,0.00013698,2]
[357125044,1743768634847,-1019.82,0.00013698,2]
[357125045,1743768634856,-500.0,0.00013698,2]
[357125046,1743768634865,-500.0,0.00013698,2]
[357125047,1743768634875,-691.94,0.00013698,2]
[357125048,1743768634884,-832.21,0.00013698,2]
[357125049,1743768634894,-500.0,0.00013698,2]
[357125050,1743768634904,-500.0,0.00013698,2]
[357125051,1743768634915,-500.0,0.00013698,2]
[357125052,1743768634924,-500.0,0.00013698,2]
[357125053,1743768634933,-500.0,0.00013698,2]
[357125054,1743768634943,-500.0,0.00013698,2]
[357125055,1743768634952,-2819.69,0.00013698,2]
[357125056,1743768634962,-500.0,0.00013698,2]
[357125057,1743768634973,-500.0,0.00013698,2]
[357125058,1743768634983,-500.0,0.00013698,2]
[357125059,1743768634993,-500.0,0.00013698,2]
[357125060,1743768635003,-500.0,0.00013698,2]
[357125061,1743768635013,-304.0,0.00013698,2]
[357125062,1743768635022,-500.0,0.00013698,2]
[357125063,1743768635032,-181.12681,0.00013699,2]
[357125064,1743768635042,-199.956083,0.00013699,2]
[357125065,1743768635051,-517.27919261,0.00013699,2]
[357125066,1743768635061,-3781.51750578,0.00013699,2]
[357125067,1743768635071,-3781.51750578,0.00013699,2]
[357125068,1743768635080,-3781.51750578,0.00013699,2]
[357125069,1743768635090,-3781.51750578,0.00013699,2]
[357125070,1743768635099,-3781.51750578,0.00013699,2]
[357125071,1743768635109,-3373.90637658,0.00013699,2]
[357125072,1743768635126,-407.6111292,0.00013699,2]
[357125073,1743768635136,-621.44473788,0.00013699,2]
[357125080,1743768638022,-3160.0727679,0.00013699,2]
[357125082,1743768638032,-3781.51750578,0.00013699,2]
[357125084,1743768638041,-3781.51750578,0.00013699,2]
[357125086,1743768638051,-3781.51750578,0.00013699,2]
[357125088,1743768638061,-3781.51750578,0.00013699,2]
[357125090,1743768638070,-3781.51750578,0.00013699,2]
[357125092,1743768638080,-3781.51750578,0.00013699,2]
[357125093,1743768638090,-535.37744303,0.00013699,2]
[357125094,1743768638105,-3246.14006275,0.00013699,2]
[357125095,1743768638115,-3781.51750578,0.00013699,2]
[357125096,1743768638125,-3781.51750578,0.00013699,2]
[357125097,1743768638134,-2144.11996714,0.00013699,2]
[357125098,1743768638146,-1637.39753864,0.00013699,2]
[357125099,1743768638155,-3781.51750578,0.00013699,2]
[357125100,1743768638166,-3781.51750578,0.00013699,2]
[357125101,1743768638176,-3781.51750578,0.00013699,2]
[357125102,1743768638190,-3480.54974402,0.00013699,2]
[357125103,1743768638202,-300.96776176,0.00013699,2]
[357125104,1743768638212,-416.21452915,0.00013699,2]
[357125105,1743768638235,-911.94749805,0.00013699,2]
[357125141,1743768643099,-157.59426,0.00013562,2]
[357125142,1743768643109,-1752.97,0.00013698,2]
[357125143,1743768643119,-500.0,0.00013698,2]
[357125144,1743768643129,-500.0,0.00013698,2]
[357125145,1743768643138,-2453.35547858,0.00013699,2]
[357125146,1743768643147,-3412.22771028,0.00013699,2]
[357125147,1743768643159,-369.2897955,0.00013699,2]
[357125148,1743768643170,-3104.17627774,0.00013699,2]
[357125149,1743768643182,-677.34122804,0.00013699,2]
[357125150,1743768643196,-822.65877196,0.00013699,2]
[357125207,1743768646189,-500.0,0.00013698,2]
[357125208,1743768646201,-11.4388742,0.00013699,2]
[357125209,1743768646241,-2947.41985962,0.00013699,2]
[357125210,1743768646252,-3781.51750578,0.00013699,2]
[357125211,1743768646262,-3781.51750578,0.00013699,2]
[357125212,1743768646274,-2604.03784764,0.00013699,2]
[357125213,1743768646285,-846.698,0.00013699,2]
[357125227,1743768646715,-330.78165814,0.00013699,2]
[357125228,1743768646726,-2909.01834186,0.00013699,2]
[357125245,1743769150961,1000.0,0.00025,30]
[357125246,1743769152475,1000.0,0.00025,30]
[357125247,1743769161090,1000.0,0.00025,30]
[357125248,1743769169692,1000.0,0.00025,30]
[357125249,1743769178992,1000.0,0.00025,30]
[357125256,1743769573802,-500.0,0.00012218,2]
[357125306,1743769756166,155.835792,0.000245,30]
[357125317,1743769817360,1310.09,0.00011,2]
[357125348,1743769832452,-2449.568322,0.00012218,2]
[357125349,1743769832462,-300.0,0.00012338,2]
[357125350,1743769832473,-24900.0,0.00012339,2]
[357125351,1743769832483,-1181.33122753,0.000125,2]
[357125352,1743769832498,-412.9528252,0.00012589,2]
[357125353,1743769832509,-1634.64160892,0.00013098,2]
[357125354,1743769832521,-164.8729509,0.00013188,2]
[357125355,1743769832533,-2277.87414352,0.00013198,2]
[357125356,1743769832546,-500.0,0.00013198,2]
[357125357,1743769832559,-155.7667475,0.00013198,2]
[357125358,1743769832570,-500.0,0.00013198,2]
[357125359,1743769832581,-185.17857543,0.00013198,2]
[357125360,1743769832592,-34794.06841905,0.00013199,2]
[357125361,1743769832604,-357.65668866,0.00013199,2]
[357125423,1743769839384,-507.12406351,0.00013199,2]
[357125532,1743769840637,-47267.15960716,0.00013199,2]
[357125622,1743769843669,-67090.90103302,0.00013199,2]
[357125623,1743769843681,-18639.49539302,0.00013199,2]
[357125698,1743769846660,-550.65806821,0.00013199,2]
[357125699,1743769846676,-15747.97932015,0.00013199,2]
[357125701,1743769846688,-442.7201743,0.00013199,2]
[357125734,1743770353076,155.835792,0.000245,30]
[357125768,1743770853409,1000.0,0.00025,30]
[357125769,1743770857746,500.0,0.00025,30]
[357125812,1743771032661,-307.8423176,0.00011971,2]
[357125814,1743771032671,-300.0,0.00012294,2]
[357125816,1743771032681,-4592.1576824,0.00012295,2]
[357125818,1743771032693,-20307.8423176,0.00012295,2]
[357125820,1743771032702,-250.0,0.00012346,2]
[357125822,1743771032712,-10963.0539691,0.0001269,2]
[357125824,1743771032722,-500.0,0.00013098,2]
[357125826,1743771032732,-607.32053495,0.00013098,2]
[357125828,1743771032742,-500.0,0.00013098,2]
[357125830,1743771032751,-41072.61204179,0.00013099,2]
[357125857,1743771032833,-893.6,0.00013099,2]
[357126123,1743771038302,-16585.0,0.00013099,2]
[357126124,1743771038373,-1079.19083589,0.00013099,2]
[357126125,1743771038441,-11279.59292172,0.00013099,2]
[357126126,1743771038452,-319.1310318,0.00013288,2]
[357126127,1743771038462,-420.0,0.00013493,2]
[357126128,1743771038472,-500.0,0.00013697,2]
[357126129,1743771038482,-621.02008131,0.00013697,2]
[357126130,1743771038491,-524.62628806,0.00013698,2]
[357126131,1743771038501,-500.0,0.00013698,2]
[357126132,1743771038511,-500.0,0.00013698,2]
[357126133,1743771038520,-500.0,0.00013698,2]
[357126134,1743771038529,-500.0,0.00013698,2]
[357126135,1743771038538,-500.0,0.00013698,2]
[357126136,1743771038547,-500.0,0.00013698,2]
[357126137,1743771038557,-500.0,0.00013698,2]
[357126138,1743771038566,-500.0,0.00013698,2]
[357126139,1743771038575,-500.0,0.00013698,2]
[357126140,1743771038584,-500.0,0.00013698,2]
[357126141,1743771038594,-508.16156616,0.00013698,2]
[357126142,1743771038605,-500.0,0.00013698,2]
[357126143,1743771038615,-500.0,0.00013698,2]
[357126144,1743771038624,-624.77814538,0.00013698,2]
[357126145,1743771038634,-500.0,0.00013698,2]
[357126146,1743771038644,-500.0,0.00013698,2]
[357126147,1743771038654,-507.24454786,0.00013698,2]
[357126148,1743771038767,-500.0,0.00013698,2]
[357126149,1743771038810,-510.7318015,0.00013698,2]
[357126150,1743771038821,-500.0,0.00013698,2]
[357126151,1743771038830,-500.0,0.00013698,2]
[357126152,1743771038840,-500.0,0.00013698,2]
[357126153,1743771038850,-500.0,0.00013698,2]
[357126154,1743771038860,-500.0,0.00013698,2]
[357126155,1743771038870,-500.0,0.00013698,2]
[357126156,1743771038879,-504.40856947,0.00013698,2]
[357126157,1743771038888,-500.0,0.00013698,2]
[357126158,1743771038901,-508.06516982,0.00013698,2]
[357126159,1743771038910,-500.0,0.00013698,2]
[357126160,1743771038919,-500.0,0.00013698,2]
[357126161,1743771038929,-500.0,0.00013698,2]
[357126162,1743771038940,-500.0,0.00013698,2]
[357126163,1743771038952,-500.0,0.00013698,2]
[357126164,1743771038961,-571.58189934,0.00013698,2]
[357126165,1743771038971,-500.0,0.00013698,2]
[357126166,1743771038980,-500.0,0.00013698,2]
[357126167,1743771038990,-500.0,0.00013698,2]
[357126168,1743771038999,-500.0,0.00013698,2]
[357126169,1743771039008,-500.0,0.00013698,2]
[357126170,1743771039017,-500.0,0.00013698,2]
[357126171,1743771039028,-503.12609167,0.00013698,2]
[357126172,1743771039037,-234.70209274,0.00013698,2]
[357126173,1743771039046,-500.0,0.00013698,2]
[357126174,1743771039055,-335.15791086,0.00013698,2]
[357126175,1743771039065,-500.0,0.00013698,2]
[357126176,1743771039074,-500.0,0.00013698,2]
[357126177,1743771039084,-500.0,0.00013698,2]
[357126178,1743771039093,-500.0,0.00013698,2]
[357126179,1743771039101,-500.0,0.00013698,2]
[357126180,1743771039111,-500.0,0.00013698,2]
[357126181,1743771039121,-500.0,0.00013698,2]
[357126182,1743771039130,-500.0,0.00013698,2]
[357126183,1743771039139,-500.0,0.00013698,2]
[357126184,1743771039153,-500.0,0.00013698,2]
[357126185,1743771039162,-460.16901769,0.00013698,2]
[357126186,1743771039175,-39.83098231,0.00013698,2]
[357126187,1743771039184,-500.0,0.00013698,2]
[357126188,1743771039194,-500.0,0.00013698,2]
[357126189,1743771039203,-179.91901769,0.00013698,2]
[357126217,1743771040690,-320.08098231,0.00013698,2]
[357126218,1743771040700,-500.0,0.00013698,2]
[357126219,1743771040710,-500.0,0.00013698,2]
[357126220,1743771040719,-201.04214738,0.00013698,2]
[357126221,1743771040751,-298.95785262,0.00013698,2]
[357126222,1743771040761,-129.26083411,0.00013698,2]
[357126223,1743771040773,-370.73916589,0.00013698,2]
[357126224,1743771040782,-500.0,0.00013698,2]
[357126225,1743771040791,-164.07600232,0.00013698,2]
[357126226,1743771040802,-200.62893922,0.00013698,2]
[357126227,1743771040811,-197.44706078,0.00013698,2]
[357126247,1743771043552,-302.55293922,0.00013698,2]
[357126248,1743771043562,-257.6664094,0.00013698,2]
[357126249,1743771043574,-242.3335906,0.00013698,2]
[357126250,1743771043584,-308.93563553,0.00013698,2]
[357126252,1743771043680,-191.06436447,0.00013698,2]
[357126255,1743771043690,-500.0,0.00013698,2]
[357126256,1743771043700,-500.0,0.00013698,2]
[357126258,1743771043710,-500.0,0.00013698,2]
[357126261,1743771043720,-500.0,0.00013698,2]
[357126263,1743771043734,-500.0,0.00013698,2]
[357126265,1743771043744,-500.0,0.00013698,2]
[357126267,1743771043753,-500.0,0.00013698,2]
[357126269,1743771043763,-500.0,0.00013698,2]
[357126271,1743771043772,-500.0,0.00013698,2]
[357126273,1743771043781,-500.0,0.00013698,2]
[357126275,1743771043791,-500.0,0.00013698,2]
[357126276,1743771043800,-500.0,0.00013698,2]
[357126277,1743771043809,-500.0,0.00013698,2]
[357126278,1743771043819,-500.0,0.00013698,2]
[357126279,1743771043829,-500.0,0.00013698,2]
[357126280,1743771043839,-500.0,0.00013698,2]
[357126281,1743771043849,-500.0,0.00013698,2]
[357126282,1743771043858,-624.09411292,0.00013698,2]
[357126283,1743771043868,-500.0,0.00013698,2]
[357126284,1743771043877,-500.0,0.00013698,2]
[357126285,1743771043887,-500.0,0.00013698,2]
[357126286,1743771043900,-500.0,0.00013698,2]
[357126287,1743771043910,-500.0,0.00013698,2]
[357126288,1743771043920,-500.0,0.00013698,2]
[357126289,1743771043930,-500.0,0.00013698,2]
[357126290,1743771043940,-500.0,0.00013698,2]
[357126291,1743771043954,-500.0,0.00013698,2]
[357126292,1743771043963,-500.0,0.00013698,2]
[357126293,1743771043973,-527.25,0.00013698,2]
[357126294,1743771043983,-500.0,0.00013698,2]
[357126295,1743771043994,-500.0,0.00013698,2]
[357126296,1743771044004,-500.0,0.00013698,2]
[357126297,1743771044013,-500.0,0.00013698,2]
[357126298,1743771044022,-500.0,0.00013698,2]
[357126299,1743771044033,-500.0,0.00013698,2]
[357126300,1743771044043,-500.0,0.00013698,2]
[357126301,1743771044053,-516.78,0.00013698,2]
[357126302,1743771044063,-500.0,0.00013698,2]
[357126303,1743771044072,-500.0,0.00013698,2]
[357126304,1743771044081,-500.0,0.00013698,2]
[357126305,1743771044091,-500.0,0.00013698,2]
[357126306,1743771044100,-500.0,0.00013698,2]
[357126307,1743771044109,-500.0,0.00013698,2]
[357126308,1743771044119,-500.0,0.00013698,2]
[357126309,1743771044129,-500.0,0.00013698,2]
[357126310,1743771044138,-500.0,0.00013698,2]
[357126311,1743771044152,-500.0,0.00013698,2]
[357126312,1743771044161,-500.0,0.00013698,2]
[357126313,1743771044171,-500.0,0.00013698,2]
[357126314,1743771044181,-500.0,0.00013698,2]
[357126315,1743771044191,-500.0,0.00013698,2]
[357126316,1743771044201,-500.0,0.00013698,2]
[357126317,1743771044211,-500.0,0.00013698,2]
[357126318,1743771044221,-500.0,0.00013698,2]
[357126319,1743771044231,-500.0,0.00013698,2]
[357126320,1743771044240,-500.0,0.00013698,2]
[357126321,1743771044250,-500.0,0.00013698,2]
[357126322,1743771044259,-500.0,0.00013698,2]
[357126323,1743771044269,-500.0,0.00013698,2]
[357126324,1743771044279,-500.0,0.00013698,2]
[357126325,1743771044289,-500.0,0.00013698,2]
[357126326,1743771044299,-500.0,0.00013698,2]
[357126327,1743771044308,-500.0,0.00013698,2]
[357126328,1743771044319,-500.0,0.00013698,2]
[357126329,1743771044328,-500.0,0.00013698,2]
[357126330,1743771044338,-318.76160541,0.00013698,2]
[357126346,1743771046768,-181.23839459,0.00013698,2]
[357126347,1743771046779,-500.0,0.00013698,2]
[357126348,1743771046788,-33.06160561,0.00013698,2]
[357126349,1743771046801,-466.93839439,0.00013698,2]
[357126350,1743771046810,-187.73472902,0.00013698,2]
[357126355,1743771079078,-110000.0,0.00012999,2]
[357126356,1743771121137,171.961206,0.00024,30]
[357126474,1743772232699,-10000.0,0.00012287,2]
[357126475,1743772232709,-300.0,0.00012459,2]
[357126477,1743772232719,-11466.1748638,0.00012468,2]
[357126479,1743772232728,-500.0,0.00012998,2]
[357126481,1743772232737,-500.0,0.00012998,2]
[357126483,1743772232747,-500.0,0.00012998,2]
[357126485,1743772232756,-418.75584822,0.00012998,2]
[357126487,1743772232766,-500.0,0.00012998,2]
[357126489,1743772232775,-1595.28135261,0.00012998,2]
[357126491,1743772232785,-500.0,0.00012998,2]
[357126493,1743772232794,-500.0,0.00012998,2]
[357126495,1743772232804,-500.0,0.00012998,2]
[357126497,1743772232813,-500.0,0.00012998,2]
[357126499,1743772232823,-500.0,0.00012998,2]
[357126501,1743772232832,-500.0,0.00012998,2]
[357126503,1743772232841,-500.0,0.00012998,2]
[357126505,1743772232850,-74602.23723292,0.00012999,2]
[357126507,1743772232859,-1708.50960202,0.00013188,2]
[357126509,1743772232868,-239.3482738,0.00013288,2]
[357126511,1743772232877,-420.0,0.00013671,2]
[357126513,1743772232887,-500.0,0.00013673,2]
[357126515,1743772232896,-500.0,0.00013673,2]
[357126517,1743772232904,-500.0,0.00013673,2]
[357126519,1743772232914,-500.0,0.00013673,2]
[357126521,1743772232924,-362.87206781,0.00013673,2]
[357126523,1743772232933,-500.0,0.00013673,2]
[357126525,1743772232943,-500.0,0.00013673,2]
[357126527,1743772232952,-500.0,0.00013673,2]
[357126529,1743772232962,-500.0,0.00013673,2]
[357126530,1743772232972,-514.68640412,0.00013673,2]
[357126532,1743772232982,-500.0,0.00013673,2]
[357126534,1743772232991,-500.0,0.00013673,2]
[357126537,1743772233001,-500.0,0.00013673,2]
[357126538,1743772233010,-500.0,0.00013673,2]
[357126540,1743772233020,-502.34073493,0.00013673,2]
[357126542,1743772233029,-573.05584598,0.00013673,2]
[357126545,1743772233039,-500.0,0.00013673,2]
[357126547,1743772233048,-500.0,0.00013673,2]
[357126548,1743772233058,-500.0,0.00013673,2]
[357126551,1743772233068,-500.0,0.00013673,2]
[357126553,1743772233078,-500.0,0.00013673,2]
[357126555,1743772233087,-500.0,0.00013673,2]
[357126556,1743772233097,-519.31581765,0.00013673,2]
[357126559,1743772233106,-500.0,0.00013673,2]
[357126560,1743772233116,-500.0,0.00013673,2]
[357126562,1743772233125,-500.0,0.00013673,2]
[357126565,1743772233135,-500.0,0.00013673,2]
[357126567,1743772233145,-500.0,0.00013673,2]
[357126568,1743772233155,-307.73182651,0.00013697,2]
[357126570,1743772233164,-500.0,0.00013698,2]
[357126572,1743772233175,-505.7329546,0.00013698,2]
[357126574,1743772233185,-505.85997015,0.00013698,2]
[357126576,1743772233194,-500.0,0.00013698,2]
[357126578,1743772233203,-181.62774334,0.00013698,2]
[357126581,1743772233213,-524.14763847,0.00013698,2]
[357126582,1743772233223,-500.0,0.00013698,2]
[357126584,1743772233232,-500.0,0.00013698,2]
[357126586,1743772233242,-210.38600346,0.00013698,2]
[357126589,1743772233251,-500.0,0.00013698,2]
[357126591,1743772233265,-505.61745046,0.00013698,2]
[357126593,1743772233275,-562.64002438,0.00013698,2]
[357126595,1743772233285,-500.0,0.00013698,2]
[357126597,1743772233295,-500.0,0.00013698,2]
[357126599,1743772233304,-500.0,0.00013698,2]
[357126601,1743772233314,-509.73187866,0.00013698,2]
[357126603,1743772233324,-510.23308974,0.00013698,2]
[357126605,1743772233334,-500.0,0.00013698,2]
[357126607,1743772233343,-506.34382072,0.00013698,2]
[357126609,1743772233354,-636.44189256,0.00013698,2]
[357126611,1743772233366,-500.0,0.00013698,2]
[357126613,1743772233375,-500.0,0.00013698,2]
[357126628,1743772233516,-509.81476205,0.00013698,2]
[357126630,1743772233527,-500.0,0.00013698,2]
[357126632,1743772233537,-505.85326437,0.00013698,2]
[357126634,1743772233546,-500.0,0.00013698,2]
[357126636,1743772233556,-500.0,0.00013698,2]
[357126638,1743772233565,-500.0,0.00013698,2]
[357126640,1743772233574,-500.0,0.00013698,2]
[357126642,1743772233584,-500.0,0.00013698,2]
[357126644,1743772233594,-514.89648392,0.00013698,2]
[357126646,1743772233604,-512.67657813,0.00013698,2]
[357126648,1743772233614,-500.0,0.00013698,2]
[357126650,1743772233623,-500.0,0.00013698,2]
[357126652,1743772233633,-500.0,0.00013698,2]
[357126654,1743772233642,-515.43797267,0.00013698,2]
[357126656,1743772233651,-500.0,0.00013698,2]
[357126658,1743772233661,-500.0,0.00013698,2]
[357126660,1743772233670,-507.2461442,0.00013698,2]
[357126662,1743772233680,-500.0,0.00013698,2]
[357126664,1743772233689,-500.0,0.00013698,2]
[357126666,1743772233699,-500.0,0.00013698,2]
[357126668,1743772233708,-500.0,0.00013698,2]
[357126670,1743772233718,-500.0,0.00013698,2]
[357126671,1743772233728,-500.0,0.00013698,2]
[357126673,1743772233737,-179.36,0.00013698,2]
[357126675,1743772233746,-500.0,0.00013698,2]
[357126677,1743772233756,-500.0,0.00013698,2]
[357126679,1743772233765,-500.0,0.00013698,2]
[357126681,1743772233774,-500.0,0.00013698,2]
[357126683,1743772233784,-500.0,0.00013698,2]
[357126685,1743772233794,-500.0,0.00013698,2]
[357126687,1743772233803,-500.0,0.00013698,2]
[357126689,1743772233813,-500.0,0.00013698,2]
[357126691,1743772233823,-500.0,0.00013698,2]
[357126693,1743772233832,-500.0,0.00013698,2]
[357126695,1743772233842,-500.0,0.00013698,2]
[357126697,1743772233852,-500.0,0.00013698,2]
[357126699,1743772233861,-500.0,0.00013698,2]
[357126702,1743772233871,-500.0,0.00013698,2]
[357126703,1743772233881,-500.0,0.00013698,2]
[357126705,1743772233891,-500.0,0.00013698,2]
[357126708,1743772233901,-500.0,0.00013698,2]
[357126710,1743772233911,-522.48456652,0.00013698,2]
[357126712,1743772233922,-512.57128422,0.00013698,2]
[357126714,1743772233932,-500.0,0.00013698,2]
[357126716,1743772233942,-500.0,0.00013698,2]
[357126718,1743772233951,-504.11516388,0.00013698,2]
[357126720,1743772233960,-500.0,0.00013698,2]
[357126722,1743772233969,-561.7695044,0.00013698,2]